bitfinex-derivatives/quotes_BTCF0:USTF0_20240820
["timestamp","ask_amount","ask_price","bid_price","bid_amount"]
[1724190936158,0.09713606,59269.0,59268.0,0.0452]
[1724190936758,0.10513606,59269.0,59268.0,0.0462]
[1724190937457,0.22173606,59269.0,59268.0,0.0462]
[1724190937658,0.22173606,59269.0,59268.0,0.0962761]
[1724190938653,0.22173606,59269.0,59268.0,0.0462]
[1724190939262,0.220951,59269.0,59268.0,0.0462]
[1724190940956,0.220951,59269.0,59268.0,0.001]
[1724190943057,0.104351,59269.0,59268.0,0.001]
[1724190943360,0.104351,59269.0,59268.0,0.085353]
[1724190943361,0.220951,59269.0,59268.0,0.085353]
[1724190944763,0.02,59269.0,59268.0,0.1354291]
[1724190945167,0.02,59269.0,59268.0,0.085353]
[1724190945460,0.00015934,59273.0,59272.0,0.084347]
[1724190945761,0.1166,59279.0,59277.0,0.08434]
[1724190945958,0.1166,59279.0,59277.0,0.49513767]
[1724190946263,0.1166,59279.0,59278.0,0.084339]
[1724190947852,0.1256,59279.0,59278.0,0.085339]
[1724190948059,0.12838449,59279.0,59278.0,0.085339]
[1724190948469,0.01178449,59279.0,59278.0,0.201939]
[1724190949960,0.00278449,59279.0,59278.0,0.200939]
[1724190950257,0.00278449,59279.0,59278.0,0.201939]
[1724190950654,0.00278449,59279.0,59278.0,0.21437585]
[1724190950858,0.00278449,59279.0,59278.0,0.21537585]
[1724190951061,0.00278449,59279.0,59278.0,0.28206611]
[1724190951264,0.00678449,59279.0,59278.0,0.28206611]
[1724190952160,0.00025307,59284.0,59283.0,0.084332]
[1724190952367,0.00025307,59284.0,59283.0,0.445132]
[1724190952662,0.084316,59294.0,59290.0,0.084321]
[1724190952858,0.084316,59294.0,59293.0,0.3608]
[1724190953062,0.084316,59294.0,59293.0,0.445117]
[1724190954159,0.084316,59294.0,59293.0,0.446117]
[1724190955252,0.090316,59294.0,59293.0,0.447117]
[1724190956060,0.084316,59294.0,59293.0,0.446117]
[1724190956257,0.086316,59294.0,59293.0,0.447117]
[1724190956458,0.086316,59294.0,59293.0,0.46057817]
[1724190956660,0.086316,59294.0,59293.0,0.45957817]
[1724190956964,0.086316,59294.0,59293.0,0.46057817]
[1724190957959,0.086316,59294.0,59293.0,0.447117]
[1724190958164,0.086316,59294.0,59293.0,0.086317]
[1724190958362,0.086316,59294.0,59293.0,0.447117]
[1724190958667,0.202916,59294.0,59293.0,0.447117]
[1724190959365,0.202916,59294.0,59293.0,0.086317]
[1724190959556,0.202916,59294.0,59293.0,0.447117]
[1724190960470,0.202916,59294.0,59293.0,0.086317]
[1724190960663,0.202916,59294.0,59293.0,0.447117]
[1724190960861,0.202916,59294.0,59293.0,0.086317]
[1724190961060,0.002,59294.0,59293.0,0.563717]
[1724190961570,0.002,59294.0,59293.0,0.447117]
[1724190962063,0.1186,59294.0,59293.0,0.447117]
[1724190962462,0.1186,59294.0,59293.0,0.086317]
[1724190962664,0.1186,59294.0,59293.0,0.447117]
[1724190964082,0.12138389,59294.0,59293.0,0.447117]
[1724190964370,0.12138389,59294.0,59293.0,0.086317]
[1724190964567,0.12138389,59294.0,59293.0,0.447117]
[1724190965267,0.12138389,59294.0,59293.0,0.086317]
[1724190965465,0.12138389,59294.0,59293.0,0.447117]
[1724190965881,0.00478389,59294.0,59293.0,0.447117]
[1724190966068,0.00478389,59294.0,59293.0,0.563717]
[1724190966281,0.002,59294.0,59293.0,0.563717]
[1724190966464,0.00478386,59294.0,59293.0,0.563717]
[1724190969575,0.00478386,59294.0,59293.0,1.469677]
[1724190969785,0.002,59294.0,59293.0,1.469677]
[1724190969967,0.00025307,59299.0,59298.0,0.08431]
[1724190970162,0.00303687,59299.0,59298.0,0.20091]
[1724190971067,0.00303687,59299.0,59298.0,0.08431]
[1724190971268,0.00903687,59299.0,59298.0,0.08531]
[1724190971468,0.00903687,59299.0,59298.0,0.08631]
[1724190972367,0.00903687,59299.0,59298.0,0.44711]
[1724190975071,0.00903687,59299.0,59298.0,0.51074927]
[1724190975469,0.00903687,59299.0,59298.0,0.46078678]
[1724190977770,0.00903687,59299.0,59298.0,0.57738678]
[1724190977970,0.00903675,59299.0,59298.0,0.57738678]
[1724190978394,0.00625307,59299.0,59298.0,0.57738678]
[1724190978583,0.00903674,59299.0,59298.0,0.57738678]
[1724190979581,0.00625307,59299.0,59298.0,0.57738678]
[1724190979781,0.00903673,59299.0,59298.0,0.57738678]
[1724190980399,0.00128,59318.0,59298.0,1.44895953]
[1724190980577,0.00278336,59309.0,59308.0,0.084296]
[1724190980882,0.00278336,59309.0,59308.0,0.706736]
[1724190981087,0.00278336,59309.0,59308.0,1.106736]
[1724190982008,0.00025242,59314.0,59313.0,0.084289]
[1724190982184,0.00303537,59314.0,59313.0,0.200889]
[1724190982684,0.00303537,59314.0,59313.0,0.084289]
[1724190982876,0.00303537,59314.0,59313.0,0.200889]
[1724190984485,0.00303537,59314.0,59313.0,0.201889]
[1724190984684,0.00303537,59314.0,59313.0,0.202889]
[1724190986085,0.0030353,59314.0,59313.0,0.25283203]
[1724190986391,0.0030353,59314.0,59313.0,0.202889]
[1724190988795,0.200874,59324.0,59313.0,0.202889]
[1724190988991,0.0027828,59323.0,59321.0,0.1166]
[1724190989192,0.200874,59324.0,59321.0,0.1166]
[1724190989193,0.0027828,59322.0,59321.0,0.200877]
[1724190989899,0.084274,59324.0,59323.0,0.084275]
[1724190990089,0.08705665,59324.0,59323.0,0.200875]
[1724190990328,0.084274,59324.0,59323.0,0.200875]
[1724190990495,0.08705663,59324.0,59323.0,0.200875]
[1724190990683,0.00278263,59324.0,59323.0,0.561675]
[1724190991085,0.00278263,59324.0,59323.0,0.562675]
[1724190991284,0.00278263,59324.0,59323.0,0.563675]
[1724190991484,0.0967,59330.0,59329.0,0.084266]
[1724190991683,0.11264084,59330.0,59329.0,0.200866]
[1724190991889,0.01594084,59330.0,59329.0,0.200866]
[1724190992889,0.00278233,59330.0,59329.0,0.200866]
[1724190993798,0.00278233,59330.0,59329.0,0.201866]
[1724190994106,0.00278233,59330.0,59329.0,0.202866]
[1724190994690,0.00278233,59330.0,59329.0,0.21631489]
[1724190997794,0.01307212,59331.0,59330.0,0.084265]
[1724190997996,0.00278225,59331.0,59330.0,0.084265]
[1724190999696,0.00278225,59331.0,59330.0,0.085265]
[1724191001201,0.00278225,59331.0,59330.0,0.086265]
[1724191001706,0.09748853,59332.0,59331.0,0.084263]
[1724191001898,0.10027075,59332.0,59331.0,0.084263]
[1724191002112,0.09748853,59332.0,59331.0,0.084263]
[1724191002304,0.10027077,59332.0,59331.0,0.084263]
[1724191003305,0.10027077,59332.0,59331.0,0.085263]
[1724191004298,0.10027077,59332.0,59331.0,0.086263]
[1724191005103,0.10027077,59332.0,59331.0,0.447063]
[1724191005304,0.00278224,59332.0,59331.0,0.447063]
[1724191005506,0.08704424,59332.0,59331.0,0.447063]
[1724191008803,0.08704424,59332.0,59331.0,0.086263]
[1724191008994,0.08704424,59332.0,59331.0,0.447063]
[1724191009808,0.08704413,59332.0,59331.0,0.447063]
[1724191010510,0.08704413,59332.0,59331.0,0.49700603]
[1724191012709,0.08704413,59332.0,59331.0,0.447063]
[1724191013706,0.08704408,59332.0,59331.0,0.447063]
[1724191014040,0.0039926,59333.0,59331.0,0.51369904]
[1724191014206,0.0462,59347.0,59345.0,0.084243]
[1724191014405,0.0462,59347.0,59346.0,0.1166]
[1724191014609,0.05931456,59347.0,59346.0,0.1166]
[1724191014807,0.14355656,59347.0,59346.0,0.200842]
[1724191015298,0.05931456,59347.0,59346.0,0.084242]
[1724191015507,0.05931456,59347.0,59346.0,0.200842]
[1724191015713,0.05931456,59347.0,59346.0,0.084242]
[1724191015913,0.05931456,59347.0,59346.0,0.200842]
[1724191017201,0.42011456,59347.0,59346.0,0.201842]
[1724191017402,0.3608,59355.0,59346.0,0.201842]
[1724191017403,0.3608,59361.0,59358.0,0.084224]
[1724191017627,0.3608,59361.0,59360.0,0.1166]
[1724191017628,0.45821224,59361.0,59360.0,0.1166]
[1724191018305,0.37677217,59361.0,59360.0,0.1166]
[1724191019201,0.01597217,59361.0,59360.0,0.561622]
[1724191019605,0.01597217,59361.0,59360.0,0.562622]
[1724191020013,0.00278093,59361.0,59360.0,0.561622]
[1724191020211,0.00278093,59361.0,59360.0,0.562622]
[1724191020715,0.00278093,59361.0,59360.0,0.561622]
[1724191020902,0.00278093,59361.0,59360.0,0.562622]
[1724191021108,0.00278093,59361.0,59360.0,0.563622]
[1724191022901,0.00278093,59361.0,59360.0,0.3628]
[1724191023303,0.08700193,59361.0,59360.0,0.002]
[1724191023508,0.20360193,59361.0,59360.0,0.002]
[1724191024407,0.200821,59361.0,59360.0,0.002]
[1724191024911,0.790442,59361.0,59360.0,0.002]
[1724191025111,0.084229,59355.0,59354.0,0.11685286]
[1724191026419,0.200829,59355.0,59354.0,0.00025286]
[1724191026622,0.285058,59355.0,59354.0,0.00225286]
[1724191026916,1.02204,59355.0,59345.0,0.1166]
[1724191027112,0.084242,59346.0,59345.0,0.1166]
[1724191027419,0.0860237,59346.0,59345.0,0.1166]
[1724191028144,0.082242,59346.0,59345.0,0.1166]
[1724191028324,0.0850237,59346.0,59345.0,0.1166]
[1724191028615,0.084245,59344.0,59341.0,0.084249]
[1724191028810,0.084245,59344.0,59340.0,0.00025286]
[1724191028811,0.0870277,59343.0,59340.0,0.00025286]
[1724191029011,0.0860277,59343.0,59340.0,0.00025286]
[1724191029608,0.0850277,59343.0,59340.0,0.00025286]
[1724191030011,0.0850277,59343.0,59342.0,0.3618]
[1724191030413,0.087246,59343.0,59342.0,0.3628]
[1724191030614,0.087246,59343.0,59342.0,0.3618]
[1724191030814,0.085246,59343.0,59342.0,0.3618]
[1724191031013,0.088246,59343.0,59342.0,0.3628]
[1724191032318,0.087246,59343.0,59342.0,0.3618]
[1724191032512,0.086246,59343.0,59342.0,0.3618]
[1724191032709,0.090246,59343.0,59342.0,0.3628]
[1724191033216,0.084246,59343.0,59342.0,0.3608]
[1724191033417,0.090246,59343.0,59342.0,0.3628]
[1724191035117,0.595766,59343.0,59342.0,0.3628]
[1724191035326,0.084249,59341.0,59340.0,0.00025286]
[1724191035527,0.444049,59341.0,59340.0,0.00025286]
[1724191035722,0.443049,59341.0,59340.0,0.00025286]
[1724191036219,0.442049,59341.0,59340.0,0.00025286]
[1724191036415,0.441049,59341.0,59340.0,0.00025286]
[1724191037023,0.445049,59341.0,59340.0,0.00125286]
[1724191038526,0.444049,59341.0,59340.0,0.00125286]
[1724191038824,0.451049,59341.0,59340.0,0.00225286]
[1724191039919,0.444049,59341.0,59340.0,0.00225286]
[1724191040226,0.448049,59341.0,59340.0,0.00125286]
[1724191040425,0.452049,59341.0,59340.0,0.00225286]
[1724191040932,0.091249,59341.0,59340.0,0.00225286]
[1724191041230,0.812849,59341.0,59340.0,0.00225286]
[1724191042432,1.795658,59341.0,59340.0,0.00125286]
[1724191042730,1.802658,59341.0,59340.0,0.00225286]
[1724191043126,1.80219637,59341.0,59340.0,0.00025286]
[1724191043325,1.81319637,59341.0,59340.0,0.00225286]
[1724191044233,1.80619637,59341.0,59340.0,0.00125286]
[1724191044430,1.81419641,59341.0,59340.0,0.00225286]
[1724191045327,1.41419641,59341.0,59340.0,0.00225286]
[1724191045538,1.41019641,59341.0,59340.0,0.00125286]
[1724191045726,1.41319641,59341.0,59340.0,0.00225286]
[1724191046519,1.41019641,59341.0,59340.0,0.00225286]
[1724191046728,1.40519641,59341.0,59340.0,0.00125286]
[1724191046932,1.81319641,59341.0,59340.0,0.00225286]
[1724191047122,1.41319641,59341.0,59340.0,0.00225286]
[1724191047323,1.40519641,59341.0,59340.0,0.00125286]
[1724191047536,1.41319641,59341.0,59340.0,0.00225286]
[1724191048237,1.402658,59341.0,59340.0,0.00225286]
[1724191048627,1.41319641,59341.0,59340.0,0.00225286]
[1724191050431,1.52969641,59341.0,59340.0,0.00225286]
[1724191052427,1.52969639,59341.0,59340.0,0.00225286]
[1724191055432,0.084256,59336.0,59335.0,0.04996126]
[1724191055737,0.445056,59336.0,59335.0,0.04996126]
[1724191056337,0.084258,59335.0,59334.0,0.1165]
[1724191056831,0.083258,59335.0,59334.0,0.1165]
[1724191057343,0.08426,59333.0,59332.0,0.06661501]
[1724191058038,0.08326,59333.0,59332.0,0.06661501]
[1724191058633,0.08226,59333.0,59332.0,0.06661501]
[1724191059639,0.08226,59333.0,59332.0,0.06761501]
[1724191059846,0.09326,59333.0,59332.0,0.06761501]
[1724191060050,0.09826,59333.0,59332.0,0.06861501]
[1724191060343,0.45906,59333.0,59332.0,0.002]
[1724191062250,0.45906,59333.0,59332.0,0.06861501]
[1724191063049,0.57556,59333.0,59332.0,0.06861501]
[1724191064853,0.57556,59333.0,59332.0,0.06871311]
[1724191065155,0.57556,59333.0,59332.0,0.002]
[1724191066345,0.21476,59333.0,59332.0,0.002]
[1724191066551,0.57556,59333.0,59332.0,0.002]
[1724191066954,0.65982,59333.0,59332.0,0.002]
[1724191067950,0.65982,59333.0,59332.0,0.06875909]
[1724191068654,1.17599898,59333.0,59332.0,0.002]
[1724191068848,1.22169898,59333.0,59332.0,0.002]
[1724191069248,1.22169898,59333.0,59332.0,0.0520727]
[1724191069249,1.21116,59333.0,59332.0,0.0520727]
[1724191069448,1.22169978,59333.0,59332.0,0.0520727]
[1724191071264,1.22169978,59333.0,59332.0,0.002]
[1724191071457,0.168524,59332.0,59331.0,0.0500727]
[1724191071762,0.17906378,59332.0,59331.0,0.0500727]
[1724191072859,1.08470378,59332.0,59331.0,0.0510727]
[1724191073064,0.168526,59331.0,59330.0,0.05032556]
[1724191073257,0.80120578,59331.0,59330.0,0.05032556]
[1724191073958,1.28546878,59331.0,59330.0,0.0500727]
[1724191074161,0.08327,59326.0,59323.0,0.06675909]
[1724191074364,0.37133978,59325.0,59322.0,0.06675909]
[1724191074566,0.45561178,59325.0,59322.0,0.06675909]
[1724191075162,0.45461178,59325.0,59322.0,0.06675909]
[1724191075766,0.45361178,59325.0,59322.0,0.06675909]
[1724191076159,0.45761178,59325.0,59324.0,0.0011945]
[1724191076364,0.46961178,59325.0,59324.0,0.0011945]
[1724191077061,0.55388378,59325.0,59324.0,0.0011945]
[1724191077658,0.5538846,59325.0,59324.0,0.0011945]
[1724191078260,0.56561029,59325.0,59324.0,0.0011945]
[1724191079464,0.56561029,59325.0,59324.0,0.0511962]
[1724191080982,0.55506969,59325.0,59324.0,0.0511962]
[1724191081164,0.56561029,59325.0,59324.0,0.0511962]
[1724191081473,0.56561029,59325.0,59324.0,0.05121522]
[1724191081763,0.56561029,59325.0,59324.0,0.0011945]
[1724191081968,0.168558,59320.0,59319.0,0.00109936]
[1724191082266,0.6563986,59320.0,59319.0,0.00025286]
[1724191082860,0.65651692,59320.0,59319.0,0.00025286]
[1724191083467,0.66251692,59320.0,59319.0,0.00125286]
[1724191084875,0.65197632,59320.0,59319.0,0.00225286]
[1724191085073,0.66251874,59320.0,59319.0,0.00225286]
[1724191085271,1.02331876,59320.0,59319.0,0.00225286]
[1724191089075,1.01277632,59320.0,59319.0,0.00225286]
[1724191089379,1.02331874,59320.0,59319.0,0.00225286]
[1724191091275,1.01277632,59320.0,59319.0,0.00225286]
[1724191094176,1.02331884,59320.0,59319.0,0.00225286]
[1724191094879,1.92903884,59320.0,59319.0,0.00225286]
[1724191095270,1.52903884,59320.0,59319.0,0.00225286]
[1724191097285,1.51849632,59320.0,59319.0,0.00225286]
[1724191097483,1.52903904,59320.0,59319.0,0.00225286]
[1724191097689,1.51849632,59320.0,59319.0,0.00225286]
[1724191097871,1.52903888,59320.0,59319.0,0.00225286]
[1724191100374,1.02331888,59320.0,59319.0,0.00225286]
[1724191101076,1.02331894,59320.0,59319.0,0.00225286]
[1724191105407,1.01277632,59320.0,59319.0,0.00225286]
[1724191105587,1.02331881,59320.0,59319.0,0.00225286]
[1724191109383,0.73826081,59320.0,59319.0,0.00225286]
[1724191109584,0.72771832,59320.0,59319.0,0.15329195]
[1724191109786,0.36691832,59320.0,59319.0,1.10875286]
[1724191109976,0.01197855,59325.0,59324.0,0.084273]
[1724191110285,0.01197855,59325.0,59324.0,0.200773]
[1724191110985,0.01209051,59325.0,59324.0,0.200773]
[1724191111488,0.02509051,59325.0,59324.0,0.201773]
[1724191111788,0.0356298,59325.0,59324.0,0.201773]
[1724191112087,0.0406298,59325.0,59324.0,0.201773]
[1724191112985,0.0406298,59325.0,59324.0,1.107453]
[1724191113983,0.02635622,59328.0,59326.0,0.08427]
[1724191114284,0.03689537,59328.0,59327.0,0.200769]
[1724191114586,0.03688701,59328.0,59327.0,0.200769]
[1724191114885,0.03688701,59328.0,59327.0,1.106449]
[1724191115278,0.01753915,59328.0,59327.0,0.706449]
[1724191115883,0.01053915,59328.0,59327.0,0.706449]
[1724191116085,0.01753915,59328.0,59327.0,0.707449]
[1724191116584,0.01753915,59328.0,59327.0,0.708449]
[1724191116779,0.01753915,59328.0,59327.0,1.108449]
[1724191117389,0.01753915,59328.0,59327.0,0.708449]
[1724191117586,0.01753885,59328.0,59327.0,0.708449]
[1724191117980,0.01753885,59328.0,59327.0,1.108449]
[1724191121409,0.007,59328.0,59327.0,1.108449]
[1724191121893,0.01753852,59328.0,59327.0,1.108449]
[1724191122293,0.00136,59353.0,59328.0,0.50564]
[1724191122591,0.00136,59353.0,59327.0,0.8793]
[1724191122592,0.1165,59357.0,59352.0,0.1165]
[1724191122980,0.1165,59359.0,59355.0,0.1165]
[1724191123179,0.1165,59354.0,59351.0,0.0478]
[1724191123393,0.3608,59352.0,59347.0,0.00025286]
[1724191123592,0.1165,59348.0,59347.0,0.00025286]
[1724191123895,0.11828119,59348.0,59347.0,0.00025286]
[1724191124194,0.20252019,59348.0,59347.0,0.00025286]
[1724191124384,0.20152019,59348.0,59347.0,0.00025286]
[1724191125399,0.20152061,59348.0,59347.0,0.00025286]
[1724191125896,0.08702061,59348.0,59347.0,0.00125286]
[1724191126095,0.20352061,59348.0,59347.0,0.00225286]
[1724191127886,0.21498834,59348.0,59347.0,0.00225286]
[1724191130295,0.09848834,59348.0,59347.0,0.00225286]
[1724191130993,0.45928834,59348.0,59347.0,0.00225286]
[1724191131999,0.09848834,59348.0,59347.0,0.00225286]
[1724191132300,0.45928834,59348.0,59347.0,0.00225286]
[1724191132597,0.57578834,59348.0,59347.0,0.00225286]
[1724191133196,0.57300673,59348.0,59347.0,0.00225286]
[1724191133388,0.57578832,59348.0,59347.0,0.00225286]
[1724191133614,0.57300673,59348.0,59347.0,0.00225286]
[1724191133794,0.57578833,59348.0,59347.0,0.00225286]
[1724191135602,0.66002733,59348.0,59347.0,0.00225286]
[1724191137600,0.084248,59342.0,59330.0,0.0969]
[1724191137798,0.2097,59341.0,59337.0,0.1165]
[1724191137999,0.3608,59338.0,59337.0,0.1165]
[1724191138394,0.445053,59338.0,59337.0,0.1165]
[1724191138999,0.084253,59338.0,59337.0,0.1165]
[1724191139194,0.445053,59338.0,59337.0,0.1165]
[1724191139599,0.445053,59338.0,59337.0,0.001]
[1724191139903,0.529306,59338.0,59337.0,0.001]
[1724191140096,0.575006,59338.0,59337.0,0.001]
[1724191140797,0.08426,59333.0,59332.0,0.00025286]
[1724191140993,0.08426,59333.0,59332.0,0.11675286]
[1724191141202,0.44406,59333.0,59332.0,0.11675286]
[1724191141395,0.44306,59333.0,59332.0,0.11675286]
[1724191141906,0.44306,59333.0,59332.0,0.11775286]
[1724191143106,0.44406,59333.0,59332.0,0.11875286]
[1724191143302,0.44406,59333.0,59332.0,0.00225286]
[1724191143303,0.52832,59333.0,59332.0,0.00225286]
[1724191144396,0.54002241,59333.0,59332.0,0.00225286]
[1724191145308,0.62428241,59333.0,59332.0,0.00225286]
[1724191149198,0.99562199,59333.0,59332.0,0.00225286]
[1724191149603,0.62428241,59333.0,59332.0,0.00225286]
[1724191150199,0.63482186,59333.0,59332.0,0.00225286]
[1724191150405,0.62428241,59333.0,59332.0,0.00225286]
[1724191150605,0.63482168,59333.0,59332.0,0.00225286]
[1724191152417,0.62428241,59333.0,59332.0,0.00225286]
[1724191152609,0.63482189,59333.0,59332.0,0.00225286]
[1724191154219,0.66117059,59333.0,59332.0,0.00225286]
[1724191155215,0.63482189,59333.0,59332.0,0.00225286]
[1724191156438,0.62428241,59333.0,59332.0,0.00225286]
[1724191156715,0.63482189,59333.0,59332.0,0.00225286]
[1724191159515,0.27402189,59333.0,59332.0,0.00225286]
[1724191159723,0.63482189,59333.0,59332.0,0.00225286]
[1724191161213,0.62428241,59333.0,59332.0,0.00225286]
[1724191161418,0.27402189,59333.0,59332.0,0.00225286]
[1724191161724,0.63482189,59333.0,59332.0,0.00225286]
[1724191162927,0.63482189,59333.0,59332.0,0.00125286]
[1724191163120,0.64182189,59333.0,59332.0,0.00225286]
[1724191164021,1.00262189,59333.0,59332.0,0.00225286]
[1724191169124,1.00262212,59333.0,59332.0,0.00225286]
[1724191170413,1.02897139,59333.0,59332.0,0.00225286]
[1724191171917,1.00262212,59333.0,59332.0,0.00225286]
[1724191175528,0.28102212,59333.0,59332.0,0.00225286]
[1724191175734,0.39752212,59333.0,59332.0,0.00225286]
[1724191176651,0.38698241,59333.0,59332.0,0.00225286]
[1724191176828,0.39752206,59333.0,59332.0,0.00225286]
[1724191177928,0.40030452,59333.0,59332.0,0.00225286]
[1724191179228,0.76110452,59333.0,59332.0,0.00225286]
[1724191180735,0.75056487,59333.0,59332.0,0.00225286]
[1724191180934,0.76110452,59333.0,59332.0,0.00225286]
[1724191184941,0.76110517,59333.0,59332.0,0.00225286]
[1724191187443,1.12190517,59333.0,59332.0,0.00225286]
[1724191188046,0.40030517,59333.0,59332.0,0.00225286]
[1724191188247,1.12190517,59333.0,59332.0,0.00225286]
[1724191192046,0.40030517,59333.0,59332.0,0.00225286]
[1724191192254,1.12190517,59333.0,59332.0,0.00225286]
[1724191192582,1.11912257,59333.0,59332.0,0.00225286]
[1724191192754,1.12190503,59333.0,59332.0,0.00225286]
[1724191192947,1.12190505,59333.0,59332.0,0.00225286]
[1724191193260,1.11136498,59333.0,59332.0,0.00225286]
[1724191193444,1.12190505,59333.0,59332.0,0.00225286]
[1724191195780,1.10858241,59333.0,59332.0,0.00225286]
[1724191195962,1.12190505,59333.0,59332.0,0.00225286]
[1724191196144,0.40030505,59333.0,59332.0,0.00225286]
[1724191196347,1.12190505,59333.0,59332.0,0.00225286]
[1724191198549,1.12190505,59333.0,59332.0,0.001]
[1724191198752,1.12190505,59333.0,59326.0,0.06650635]
[1724191198753,0.168538,59327.0,59326.0,0.06650635]
[1724191198959,0.16854,59326.0,59325.0,0.06650635]
[1724191199154,0.18186264,59326.0,59325.0,0.06650635]
[1724191199559,0.168546,59324.0,59323.0,0.0492]
[1724191199761,0.18186864,59324.0,59323.0,0.0492]
[1724191200260,0.168552,59322.0,59321.0,0.0469]
[1724191200456,0.168568,59316.0,59315.0,0.06463517]
[1724191200758,0.084292,59311.0,59310.0,0.0461]
[1724191200964,0.45841844,59311.0,59310.0,0.0461]
[1724191201162,0.37412644,59311.0,59307.0,0.08313294]
[1724191201357,0.37412644,59311.0,59296.0,0.1165]
[1724191201358,0.445096,59308.0,59296.0,0.1165]
[1724191201658,0.3608,59297.0,59296.0,0.00025286]
[1724191201865,0.33194712,59297.0,59296.0,0.62267286]
[1724191202061,0.40425812,59297.0,59296.0,0.62267286]
[1724191202357,0.40425812,59297.0,59296.0,0.11675286]
[1724191202553,0.51975812,59297.0,59296.0,0.00025286]
[1724191202752,0.96486912,59297.0,59296.0,8.6e-07]
[1724191203570,0.95154268,59297.0,59296.0,8.6e-07]
[1724191203759,0.99224247,59297.0,59296.0,8.6e-07]
[1724191203969,0.84937436,59297.0,59296.0,8.6e-07]
[1724191204161,0.84409001,59297.0,59296.0,8.6e-07]
[1724191204462,0.084328,59285.0,59284.0,0.0479]
[1724191204660,0.084331,59283.0,59282.0,0.04927581]
[1724191205662,0.084331,59283.0,59282.0,0.00017581]
[1724191205861,0.168662,59283.0,59282.0,8.1e-07]
[1724191206055,0.16867,59280.0,59279.0,6.7e-07]
[1724191206257,0.65651884,59280.0,59279.0,6.7e-07]
[1724191207066,0.65669465,59280.0,59279.0,6.7e-07]
[1724191207663,0.55101884,59280.0,59279.0,6.7e-07]
[1724191207863,0.68801871,59280.0,59279.0,6.7e-07]
[1724191208368,0.67746987,59280.0,59279.0,6.7e-07]
[1724191208771,0.59313487,59280.0,59279.0,6.7e-07]
[1724191208963,0.47663487,59280.0,59279.0,1.02258067]
[1724191209163,0.46231081,59280.0,59279.0,1.02258067]
[1724191209477,0.01717581,59280.0,59279.0,1.02258067]
[1724191210266,0.00025286,59290.0,59279.0,0.51650067]
[1724191210564,0.01482291,59290.0,59288.0,0.1165]
[1724191210873,0.08457386,59290.0,59289.0,0.0472]
[1724191211373,0.09057386,59290.0,59289.0,0.0472]
[1724191211573,0.10457386,59290.0,59289.0,0.0472]
[1724191211872,0.11914249,59290.0,59289.0,0.0472]
[1724191212069,0.11914249,59290.0,59289.0,0.0922]
[1724191212671,0.11914249,59290.0,59289.0,0.9982]
[1724191212869,0.10457386,59290.0,59289.0,0.9982]
[1724191213072,0.11257386,59290.0,59289.0,0.9992]
[1724191214175,0.084321,59290.0,59289.0,0.9992]
[1724191216071,0.00025286,59295.0,59289.0,0.9992]
[1724191216273,0.00025286,59295.0,59290.0,0.50596]
[1724191216781,0.084321,59291.0,59290.0,0.4]
[1724191217178,0.084321,59291.0,59290.0,0.906]
[1724191217982,0.084321,59291.0,59290.0,0.907]
[1724191218883,0.08456686,59295.0,59290.0,0.907]
[1724191219080,0.08456686,59295.0,59291.0,0.50596]
[1724191219269,0.00025286,59295.0,59294.0,0.084315]
[1724191219673,0.00025286,59295.0,59294.0,0.990275]
[1724191220275,0.00825286,59295.0,59294.0,0.990275]
[1724191221181,0.00825286,59295.0,59294.0,0.992275]
[1724191222877,0.00825286,59295.0,59294.0,1.00628039]
[1724191223179,0.084311,59297.0,59296.0,0.084313]
[1724191223480,0.084311,59297.0,59296.0,0.484313]
[1724191223688,0.084311,59297.0,59296.0,0.990233]
[1724191223984,0.3608,59316.0,59305.0,0.0843]
[1724191224280,0.00025286,59316.0,59315.0,0.375886]
[1724191224480,0.00025286,59316.0,59315.0,0.736686]
[1724191224678,0.084277,59321.0,59315.0,1.55816]
[1724191224880,0.084271,59326.0,59321.0,0.084277]
[1724191225071,0.084272,59325.0,59322.0,0.0944]
[1724191226780,0.084272,59325.0,59322.0,0.0954]
[1724191227482,0.088272,59325.0,59322.0,0.0964]
[1724191229978,0.088272,59325.0,59322.0,0.180675]
[1724191233592,0.088272,59325.0,59322.0,0.134675]
[1724191234485,0.088272,59325.0,59323.0,0.084274]
[1724191235487,0.088272,59325.0,59324.0,0.3608]
[1724191236689,0.084272,59325.0,59324.0,0.3608]
[1724191236890,0.088272,59325.0,59324.0,0.001]
[1724191237192,0.088272,59325.0,59324.0,0.3618]
[1724191237490,0.088272,59325.0,59324.0,0.3628]
[1724191239183,0.088272,59325.0,59324.0,0.447073]
[1724191240592,0.004,59325.0,59324.0,0.447073]
[1724191241687,0.004,59325.0,59324.0,1.352753]
[1724191243188,0.004,59325.0,59324.0,1.351753]
[1724191243887,0.00025286,59329.0,59328.0,0.084267]
[1724191244089,0.00025286,59329.0,59328.0,0.736667]
[1724191244414,0.00025286,59329.0,59328.0,1.642307]
[1724191245486,0.00025286,59329.0,59328.0,1.69215566]
[1724191245683,0.00025286,59329.0,59328.0,1.642307]
[1724191245883,0.00025286,59329.0,59328.0,1.69216059]
[1724191246083,0.00025286,59329.0,59328.0,1.69316059]
[1724191246482,0.00025286,59329.0,59328.0,1.65684451]
[1724191246895,0.084252,59339.0,59328.0,1.57357751]
[1724191247094,0.004,59329.0,59328.0,0.75220451]
[1724191247295,0.004,59329.0,59328.0,1.61864451]
[1724191247595,0.004,59329.0,59328.0,2.01864451]
[1724191247999,0.00025286,59334.0,59333.0,0.08426]
[1724191248296,0.00025286,59334.0,59333.0,0.44506]
[1724191249793,0.00025286,59334.0,59333.0,1.43492]
[1724191250487,0.1467,59354.0,59333.0,1.43492]
[1724191250488,0.1467,59354.0,59339.0,0.084251]
[1724191250686,0.1467,59354.0,59351.0,0.084234]
[1724191251494,0.0486,59354.0,59353.0,0.084232]
[1724191251693,0.0486,59354.0,59353.0,0.445032]
[1724191252802,0.084232,59353.0,59351.0,0.001]
[1724191253099,0.08701409,59352.0,59351.0,0.001]
[1724191253488,0.00278109,59352.0,59351.0,0.001]
[1724191253689,0.13283,59354.0,59353.0,0.001]
[1724191253888,0.4,59352.0,59333.0,0.59684]
[1724191254195,0.4,59352.0,59315.0,0.10044605]
[1724191254196,0.084265,59330.0,59328.0,0.3608]
[1724191254506,0.3598,59342.0,59328.0,0.3608]
[1724191254800,0.0922,59341.0,59328.0,0.3608]